Workbook

Sheet Rekapitulace stavby
A1: Export Komplet | BA1: 2.0 | BB1: ZAMOK | BT1: False | BU1: False | BV1: {b05e3f33-3b4c-429f-b6de-075f36c8fc78}
BS2: 0,01 | BT2: 21
BS3: 0,01 | BT3: 12
D4: REKAPITULACE STAVBY | AS4: v --- níže se nacházejí doplnkové a pomocné údaje k sestavám --- v | BE4: Návod na vyplnění | BS4: 0,001
D5: Kód: | K5: ROP240630 | BE5: Měnit lze pouze buňky se žlutým podbarvením! 1) na prvním listu Rekapitulace stavby vyplňte v sestavě a) Souhrnný list - údaje o Uchazeči (přenesou se do ostatních sestav i v jiných listech) b) Rekapitulace objektů - potřebné Ostatní náklady 2) na vybraných listech vyplňte v sestavě a) Krycí list - údaje o Uchazeči, pokud se liší od údajů o Uchazeči na Souhrnném listu (údaje se přenesou do ostatních sestav v daném listu) b) Rekapitulace rozpočtu - potřebné Ostatní náklady c) Celkové náklady za stavbu - ceny u položek - množství, pokud má žluté podbarvení - a v případě potřeby poznámku (ta je ve skrytém sloupci) | BS5: 0,01
D6: Stavba: | K6: Sanace střešního pláště, Třída Míru 90, Pardubice | BS6: 0,01
D7: KSO: | AK7: CC-CZ: | BS7: 0,01
D8: Místo: | K8: Pardubice | AK8: Datum: | AN8: 1. 6. 2024 | BS8: 0,01
BS9: 0,01
D10: Zadavatel: | AK10: IČ: | BS10: 0,01
AK11: DIČ: | BS11: 0,01
BS12: 0,01
D13: Uchazeč: | AK13: IČ: | AN13: Vyplň údaj | BS13: 0,01
E14: Vyplň údaj | AK14: DIČ: | AN14: Vyplň údaj | BS14: 0,01
BS15: False
D16: Projektant: | AK16: IČ: | BS16: False
AK17: DIČ: | BS17: True
BS18: 0,01
D19: Zpracovatel: | AK19: IČ: | BS19: 0,01
AK20: DIČ: | BS20: False
D22: Poznámka:
E23: Soupis prací je sestaven s využitím Cenové soustavy ÚRS. Položky, které pochází z této cenové soustavy, jsou ve sloupci 'Cenová soustava' označeny popisem 'CS ÚRS' a úrovní příslušného kalendářního pololetí. Veškeré další informace vymezující popis a podmínky použití těchto položek z Cenové soustavy, které nejsou uvedeny přímo v soupisu prací, jsou neomezeně dálkově k dispozici na webu podminky.urs.cz.
D26: Cena bez DPH | AK26: =ROUND(AG94,2) -> 0
L28: Sazba daně | W28: Základ daně | AK28: Výše daně
D29: DPH | F29: základní | L29: 0.21 | W29: =ROUND(AZ94, 2) -> 0 | AK29: =ROUND(AV94, 2) -> 0
F30: snížená | L30: 0.12 | W30: =ROUND(BA94, 2) -> 0 | AK30: =ROUND(AW94, 2) -> 0
F31: zákl. přenesená | L31: 0.21 | W31: =ROUND(BB94, 2) -> 0 | AK31: 0
F32: sníž. přenesená | L32: 0.12 | W32: =ROUND(BC94, 2) -> 0 | AK32: 0
F33: nulová | L33: 0 | W33: =ROUND(BD94, 2) -> 0 | AK33: 0
D35: Cena s DPH | T35: v | X35: CZK | AK35: =SUM(AK26:AK33) -> 0
D49: Projektant | AH49: Zpracovatel
D60: Datum a podpis: | V60: Razítko | AH60: Datum a podpis: | AM60: Razítko
D64: Objednavatel | AH64: Uchazeč
D75: Datum a podpis: | V75: Razítko | AH75: Datum a podpis: | AM75: Razítko
C82: REKAPITULACE OBJEKTŮ STAVBY A SOUPISŮ PRACÍ
C84: Kód: | L84: =K5 -> ROP240630
C85: Stavba: | L85: =K6 -> Sanace střešního pláště, Třída Míru 90, Pardubice
C87: Místo: | L87: =IF(K8="","",K8) -> Pardubice | AI87: Datum: | AM87: =IF(AN8= "","",AN8) -> 1. 6. 2024
C89: Zadavatel: | L89: =IF(E11= "","",E11) ->  | AI89: Projektant: | AM89: =IF(E17="","",E17) ->  | AS89: Informatívní údaje z listů zakázek
C90: Uchazeč: | L90: =IF(E14= "Vyplň údaj","",E14) ->  | AI90: Zpracovatel: | AM90: =IF(E20="","",E20) -> 
C92: Kód | I92: Popis | AG92: Cena bez DPH [CZK] | AN92: Cena s DPH [CZK] | AQ92: Typ | AS92: z toho Ostat. náklady [CZK] | AT92: DPH [CZK] | AU92: Normohodiny [h] | AV92: DPH základní [CZK] | AW92: DPH snížená [CZK] | AX92: DPH základní přenesená [CZK] | AY92: DPH snížená přenesená [CZK] | AZ92: Základna DPH základní | BA92: Základna DPH snížená | BB92: Základna DPH zákl. přenesená | BC92: Základna DPH sníž. přenesená | BD92: Základna DPH nulová
C94: Náklady z rozpočtů | AG94: =ROUND(AG95,2) -> 0 | AN94: =SUM(AG94,AT94) -> 0 | AS94: =ROUND(AS95,2) -> 0 | AT94: =ROUND(SUM(AV94:AW94),2) -> 0 | AU94: =ROUND(AU95,5) -> 0 | AV94: =ROUND(AZ94*L29,2) -> 0 | AW94: =ROUND(BA94*L30,2) -> 0 | AX94: =ROUND(BB94*L29,2) -> 0 | AY94: =ROUND(BC94*L30,2) -> 0 | AZ94: =ROUND(AZ95,2) -> 0 | BA94: =ROUND(BA95,2) -> 0 | BB94: =ROUND(BB95,2) -> 0 | BC94: =ROUND(BC95,2) -> 0 | BD94: =ROUND(BD95,2) -> 0 | BS94: D | BT94: 0 | BU94: ###NOIMPORT### | BV94: IMPORT | BW94: {b05e3f33-3b4c-429f-b6de-075f36c8fc78} | BX94: {00000000-0000-0000-0000-000000000000}
A95: / | D95: 0001 | J95: Stavební část | AG95: ='0001 - Stavební část'!J30 -> 0 | AN95: =SUM(AG95,AT95) -> 0 | AQ95: STA | AS95: 0 | AT95: =ROUND(SUM(AV95:AW95),2) -> 0 | AU95: ='0001 - Stavební část'!P136 -> 0 | AV95: ='0001 - Stavební část'!J33 -> 0 | AW95: ='0001 - Stavební část'!J34 -> 0 | AX95: ='0001 - Stavební část'!J35 -> 0 | AY95: ='0001 - Stavební část'!J36 -> 0 | AZ95: ='0001 - Stavební část'!F33 -> 0 | BA95: ='0001 - Stavební část'!F34 -> 0 | BB95: ='0001 - Stavební část'!F35 -> 0 | BC95: ='0001 - Stavební část'!F36 -> 0 | BD95: ='0001 - Stavební část'!F37 -> 0 | BT95: 1 | BV95: IMPORT | BW95: {14a473b4-9a82-47ab-af98-f170498dbb60} | BX95: {b05e3f33-3b4c-429f-b6de-075f36c8fc78} | CM95: 2

Sheet 0001 - Stavební část
AT2: {14a473b4-9a82-47ab-af98-f170498dbb60}
AT3: 2
D4: KRYCÍ LIST SOUPISU PRACÍ | M4: v --- níže se nacházejí doplnkové a pomocné údaje k sestavám --- v | AT4: False
D6: Stavba:
E7: ='Rekapitulace stavby'!K6 -> Sanace střešního pláště, Třída Míru 90, Pardubice
D8: Objekt:
E9: 0001 - Stavební část
D11: KSO: | I11: CC-CZ:
D12: Místo: | F12: Pardubice | I12: Datum: | J12: ='Rekapitulace stavby'!AN8 -> 1. 6. 2024
D14: Zadavatel: | I14: IČ: | J14: =IF('Rekapitulace stavby'!AN10="","",'Rekapitulace stavby'!AN10) -> 
E15: =IF('Rekapitulace stavby'!E11="","",'Rekapitulace stavby'!E11) ->  | I15: DIČ: | J15: =IF('Rekapitulace stavby'!AN11="","",'Rekapitulace stavby'!AN11) -> 
D17: Uchazeč: | I17: IČ: | J17: ='Rekapitulace stavby'!AN13 -> Vyplň údaj
E18: ='Rekapitulace stavby'!E14 -> Vyplň údaj | I18: DIČ: | J18: ='Rekapitulace stavby'!AN14 -> Vyplň údaj
D20: Projektant: | I20: IČ: | J20: =IF('Rekapitulace stavby'!AN16="","",'Rekapitulace stavby'!AN16) -> 
E21: =IF('Rekapitulace stavby'!E17="","",'Rekapitulace stavby'!E17) ->  | I21: DIČ: | J21: =IF('Rekapitulace stavby'!AN17="","",'Rekapitulace stavby'!AN17) -> 
D23: Zpracovatel: | I23: IČ: | J23: =IF('Rekapitulace stavby'!AN19="","",'Rekapitulace stavby'!AN19) -> 
E24: =IF('Rekapitulace stavby'!E20="","",'Rekapitulace stavby'!E20) ->  | I24: DIČ: | J24: =IF('Rekapitulace stavby'!AN20="","",'Rekapitulace stavby'!AN20) -> 
D26: Poznámka:
D30: Cena bez DPH | J30: =ROUND(J136, 2) -> 0
F32: Základ daně | I32: Sazba daně | J32: Výše daně
D33: DPH | E33: základní | F33: =ROUND((SUM(BE136:BE684)), 2) -> 0 | I33: 0.21 | J33: =ROUND(((SUM(BE136:BE684))*I33), 2) -> 0
E34: snížená | F34: =ROUND((SUM(BF136:BF684)), 2) -> 0 | I34: 0.12 | J34: =ROUND(((SUM(BF136:BF684))*I34), 2) -> 0
E35: zákl. přenesená | F35: =ROUND((SUM(BG136:BG684)), 2) -> 0 | I35: 0.21 | J35: =0 -> 0
E36: sníž. přenesená | F36: =ROUND((SUM(BH136:BH684)), 2) -> 0 | I36: 0.12 | J36: =0 -> 0
E37: nulová | F37: =ROUND((SUM(BI136:BI684)), 2) -> 0 | I37: 0 | J37: =0 -> 0
D39: Cena s DPH | G39: v | H39: CZK | J39: =SUM(J30:J37) -> 0
D50: Projektant | G50: Zpracovatel
D61: Datum a podpis: | F61: Razítko | G61: Datum a podpis: | J61: Razítko
D65: Objednavatel | G65: Uchazeč
D76: Datum a podpis: | F76: Razítko | G76: Datum a podpis: | J76: Razítko
C82: REKAPITULACE ČLENĚNÍ SOUPISU PRACÍ
C84: Stavba:
E85: =E7 -> Sanace střešního pláště, Třída Míru 90, Pardubice
C86: Objekt:
E87: =E9 -> 0001 - Stavební část
C89: Místo: | F89: =F12 -> Pardubice | I89: Datum: | J89: =IF(J12="","",J12) -> 1. 6. 2024
C91: Zadavatel: | F91: =E15 ->  | I91: Projektant: | J91: =E21 -> 
C92: Uchazeč: | F92: =IF(E18="","",E18) -> Vyplň údaj | I92: Zpracovatel: | J92: =E24 -> 
C94: Kód dílu - Popis | J94: Cena celkem [CZK]
C96: Náklady ze soupisu prací | J96: =J136 -> 0 | AU96: -1
D97: HSV - Práce a dodávky HSV | J97: =J137 -> 0
D98: 3 - Svislé a kompletní konstrukce | J98: =J138 -> 0
D99: 6 - Úpravy povrchů, podlahy a osazování výplní | J99: =J142 -> 0
D100: 9 - Ostatní konstrukce a práce, bourání | J100: =J176 -> 0
D101: 997 - Přesun sutě | J101: =J261 -> 0
D102: 998 - Přesun hmot | J102: =J278 -> 0
D103: PSV - Práce a dodávky PSV | J103: =J280 -> 0
D104: 712 - Povlakové krytiny | J104: =J281 -> 0
D105: 713 - Izolace tepelné | J105: =J469 -> 0
D106: 721 - Zdravotechnika - vnitřní kanalizace | J106: =J541 -> 0
D107: 762 - Konstrukce tesařské | J107: =J559 -> 0
D108: 764 - Konstrukce klempířské | J108: =J595 -> 0
D109: 767 - Konstrukce zámečnické | J109: =J615 -> 0
D110: 784 - Dokončovací práce - malby a tapety | J110: =J624 -> 0
D111: VRN - Vedlejší rozpočtové náklady | J111: =J672 -> 0
D112: VRN1 - Projektové práce | J112: =J673 -> 0
D113: VRN2 - Průzkumné a geodetické práce | J113: =J675 -> 0
D114: VRN3 - Zařízení staveniště | J114: =J677 -> 0
D115: VRN4 - Inženýrská činnost | J115: =J680 -> 0
D116: VRN7 - Provozní vlivy | J116: =J683 -> 0
C123: SOUPIS PRACÍ
C125: Stavba:
E126: =E7 -> Sanace střešního pláště, Třída Míru 90, Pardubice
C127: Objekt:
E128: =E9 -> 0001 - Stavební část
C130: Místo: | F130: =F12 -> Pardubice | I130: Datum: | J130: =IF(J12="","",J12) -> 1. 6. 2024
C132: Zadavatel: | F132: =E15 ->  | I132: Projektant: | J132: =E21 -> 
C133: Uchazeč: | F133: =IF(E18="","",E18) -> Vyplň údaj | I133: Zpracovatel: | J133: =E24 -> 
C135: PČ | D135: Typ | E135: Kód | F135: Popis | G135: MJ | H135: Množství | I135: J.cena [CZK] | J135: Cena celkem [CZK] | K135: Cenová soustava | N135: DPH | O135: J. Nh [h] | P135: Nh celkem [h] | Q135: J. hmotnost [t] | R135: Hmotnost celkem [t] | S135: J. suť [t] | T135: Suť Celkem [t]
C136: Náklady soupisu celkem | J136: =BK136 -> 0 | P136: =P137+P280+P672 -> 0 | R136: =R137+R280+R672 -> 10.14733962 | T136: =T137+T280+T672 -> 19.14398279 | AT136: D | AU136: -1 | BK136: =BK137+BK280+BK672 -> 0
D137: D | E137: HSV | F137: Práce a dodávky HSV | J137: =BK137 -> 0 | P137: =P138+P142+P176+P261+P278 -> 0 | R137: =R138+R142+R176+R261+R278 -> 5.52032262 | T137: =T138+T142+T176+T261+T278 -> 13.889909 | AR137: 1 | AT137: D | AU137: 0 | AY137: ROZPOCET | BK137: =BK138+BK142+BK176+BK261+BK278 -> 0
D138: D | E138: 3 | F138: Svislé a kompletní konstrukce | J138: =BK138 -> 0 | P138: =SUM(P139:P141) -> 0 | R138: =SUM(R139:R141) -> 0.2064445 | T138: =SUM(T139:T141) -> 0 | AR138: 1 | AT138: D | AU138: 1 | AY138: ROZPOCET | BK138: =SUM(BK139:BK141) -> 0
C139: 1 | D139: K | E139: 340239211 | F139: Zazdívka otvorů v příčkách nebo stěnách cihlami pálenými plnými plochy přes 1 m2 do 4 m2, tloušťky do 100 mm | G139: m2 | H139: 1.55 | J139: =ROUND(I139*H139,2) -> 0 | K139: CS ÚRS 2024 01 | N139: základní | P139: =O139*H139 -> 0 | Q139: 0.13319 | R139: =Q139*H139 -> 0.2064445 | S139: 0 | T139: =S139*H139 -> 0 | AR139: 4 | AT139: K | AU139: 2 | AY139: ROZPOCET | BE139: =IF(N139="základní",J139,0) -> 0 | BF139: =IF(N139="snížená",J139,0) -> 0 | BG139: =IF(N139="zákl. přenesená",J139,0) -> 0 | BH139: =IF(N139="sníž. přenesená",J139,0) -> 0 | BI139: =IF(N139="nulová",J139,0) -> 0 | BJ139: 1 | BK139: =ROUND(I139*H139,2) -> 0 | BL139: 4 | BM139: -954783411
D140: VV | F140: zazdění svodu | AT140: VV | AU140: 2 | AV140: 1 | AW140: True | AX140: 0 | AY140: ROZPOCET
D141: VV | F141: 0,50*3,10 | H141: 1.55 | AT141: VV | AU141: 2 | AV141: 2 | AW141: True | AX141: 1 | AY141: ROZPOCET
D142: D | E142: 6 | F142: Úpravy povrchů, podlahy a osazování výplní | J142: =BK142 -> 0 | P142: =SUM(P143:P175) -> 0 | R142: =SUM(R143:R175) -> 5.06251075 | T142: =SUM(T143:T175) -> 0 | AR142: 1 | AT142: D | AU142: 1 | AY142: ROZPOCET | BK142: =SUM(BK143:BK175) -> 0
C143: 2 | D143: K | E143: 612131121 | F143: Podkladní a spojovací vrstva vnitřních omítaných ploch penetrace disperzní nanášená ručně stěn | G143: m2 | H143: 3.17 | J143: =ROUND(I143*H143,2) -> 0 | K143: CS ÚRS 2024 01 | N143: základní | P143: =O143*H143 -> 0 | Q143: 0.00026 | R143: =Q143*H143 -> 0.0008242 | S143: 0 | T143: =S143*H143 -> 0 | AR143: 4 | AT143: K | AU143: 2 | AY143: ROZPOCET | BE143: =IF(N143="základní",J143,0) -> 0 | BF143: =IF(N143="snížená",J143,0) -> 0 | BG143: =IF(N143="zákl. přenesená",J143,0) -> 0 | BH143: =IF(N143="sníž. přenesená",J143,0) -> 0 | BI143: =IF(N143="nulová",J143,0) -> 0 | BJ143: 1 | BK143: =ROUND(I143*H143,2) -> 0 | BL143: 4 | BM143: 857373974
D144: VV | F144: oprava stropu pod vpustí | AT144: VV | AU144: 2 | AV144: 1 | AW144: True | AX144: 0 | AY144: ROZPOCET
D145: VV | F145: 1,0 | H145: 1 | AT145: VV | AU145: 2 | AV145: 2 | AW145: True | AX145: 0 | AY145: ROZPOCET
D146: VV | F146: oprava po zazdění svodu | AT146: VV | AU146: 2 | AV146: 1 | AW146: True | AX146: 0 | AY146: ROZPOCET
D147: VV | F147: 0,70*3,10 | H147: 2.17 | AT147: VV | AU147: 2 | AV147: 2 | AW147: True | AX147: 0 | AY147: ROZPOCET
D148: VV | F148: Součet | H148: 3.17 | AT148: VV | AU148: 2 | AV148: 4 | AW148: True | AX148: 1 | AY148: ROZPOCET
C149: 3 | D149: K | E149: 611325223 | F149: Vápenocementová omítka jednotlivých malých ploch štuková na stropech, plochy jednotlivě přes 0,25 do 1 m2 | G149: kus | H149: 1 | J149: =ROUND(I149*H149,2) -> 0 | K149: CS ÚRS 2024 01 | N149: základní | P149: =O149*H149 -> 0 | Q149: 0.0415 | R149: =Q149*H149 -> 0.0415 | S149: 0 | T149: =S149*H149 -> 0 | AR149: 4 | AT149: K | AU149: 2 | AY149: ROZPOCET | BE149: =IF(N149="základní",J149,0) -> 0 | BF149: =IF(N149="snížená",J149,0) -> 0 | BG149: =IF(N149="zákl. přenesená",J149,0) -> 0 | BH149: =IF(N149="sníž. přenesená",J149,0) -> 0 | BI149: =IF(N149="nulová",J149,0) -> 0 | BJ149: 1 | BK149: =ROUND(I149*H149,2) -> 0 | BL149: 4 | BM149: 2129176478
D150: VV | F150: oprava stropu pod vpustí | AT150: VV | AU150: 2 | AV150: 1 | AW150: True | AX150: 0 | AY150: ROZPOCET
D151: VV | F151: 1,0 | H151: 1 | AT151: VV | AU151: 2 | AV151: 2 | AW151: True | AX151: 1 | AY151: ROZPOCET
C152: 4 | D152: K | E152: 612325225 | F152: Vápenocementová omítka jednotlivých malých ploch štuková na stěnách, plochy jednotlivě přes 1,0 do 4 m2 | G152: kus | H152: 1 | J152: =ROUND(I152*H152,2) -> 0 | K152: CS ÚRS 2024 01 | N152: základní | P152: =O152*H152 -> 0 | Q152: 0.1575 | R152: =Q152*H152 -> 0.1575 | S152: 0 | T152: =S152*H152 -> 0 | AR152: 4 | AT152: K | AU152: 2 | AY152: ROZPOCET | BE152: =IF(N152="základní",J152,0) -> 0 | BF152: =IF(N152="snížená",J152,0) -> 0 | BG152: =IF(N152="zákl. přenesená",J152,0) -> 0 | BH152: =IF(N152="sníž. přenesená",J152,0) -> 0 | BI152: =IF(N152="nulová",J152,0) -> 0 | BJ152: 1 | BK152: =ROUND(I152*H152,2) -> 0 | BL152: 4 | BM152: 739941057
D153: VV | F153: oprava po zazdění svodu | AT153: VV | AU153: 2 | AV153: 1 | AW153: True | AX153: 0 | AY153: ROZPOCET
D154: VV | F154: 1,0 | H154: 1 | AT154: VV | AU154: 2 | AV154: 2 | AW154: True | AX154: 1 | AY154: ROZPOCET
C155: 5 | D155: K | E155: 622252001 | F155: Montáž profilů kontaktního zateplení zakládacích soklových připevněných hmoždinkami | G155: m | H155: 16.87 | J155: =ROUND(I155*H155,2) -> 0 | K155: CS ÚRS 2024 01 | N155: základní | P155: =O155*H155 -> 0 | Q155: 3e-05 | R155: =Q155*H155 -> 0.0005061 | S155: 0 | T155: =S155*H155 -> 0 | AR155: 4 | AT155: K | AU155: 2 | AY155: ROZPOCET | BE155: =IF(N155="základní",J155,0) -> 0 | BF155: =IF(N155="snížená",J155,0) -> 0 | BG155: =IF(N155="zákl. přenesená",J155,0) -> 0 | BH155: =IF(N155="sníž. přenesená",J155,0) -> 0 | BI155: =IF(N155="nulová",J155,0) -> 0 | BJ155: 1 | BK155: =ROUND(I155*H155,2) -> 0 | BL155: 4 | BM155: -1722638571
D156: VV | F156: vytažení na konstrukce | AT156: VV | AU156: 2 | AV156: 1 | AW156: True | AX156: 0 | AY156: ROZPOCET
D157: VV | F157: atiky a stěny | AT157: VV | AU157: 2 | AV157: 1 | AW157: True | AX157: 0 | AY157: ROZPOCET
D158: VV | F158: 8,005+2,075+0,15+1,75+4,89 | H158: 16.87 | AT158: VV | AU158: 2 | AV158: 2 | AW158: True | AX158: 1 | AY158: ROZPOCET
C159: 6 | D159: M | E159: 59051510 | F159: profil začišťovací s okapnicí PVC s výztužnou tkaninou pro nadpraží ETICS | G159: m | H159: 17.714 | J159: =ROUND(I159*H159,2) -> 0 | K159: CS ÚRS 2024 01 | N159: základní | P159: =O159*H159 -> 0 | Q159: 0.0003 | R159: =Q159*H159 -> 0.0053142 | S159: 0 | T159: =S159*H159 -> 0 | AR159: 8 | AT159: M | AU159: 2 | AY159: ROZPOCET | BE159: =IF(N159="základní",J159,0) -> 0 | BF159: =IF(N159="snížená",J159,0) -> 0 | BG159: =IF(N159="zákl. přenesená",J159,0) -> 0 | BH159: =IF(N159="sníž. přenesená",J159,0) -> 0 | BI159: =IF(N159="nulová",J159,0) -> 0 | BJ159: 1 | BK159: =ROUND(I159*H159,2) -> 0 | BL159: 4 | BM159: 260171955
D160: VV | F160: vytažení na konstrukce | AT160: VV | AU160: 2 | AV160: 1 | AW160: True | AX160: 0 | AY160: ROZPOCET
D161: VV | F161: atiky a stěny | AT161: VV | AU161: 2 | AV161: 1 | AW161: True | AX161: 0 | AY161: ROZPOCET
D162: VV | F162: 8,005+2,075+0,15+1,75+4,89 | H162: 16.87 | AT162: VV | AU162: 2 | AV162: 2 | AW162: True | AX162: 1 | AY162: ROZPOCET
D163: VV | F163: 16,87*1,05 'Přepočtené koeficientem množství | H163: 17.714 | AT163: VV | AU163: 2 | AV163: 2 | AW163: False | AX163: 1 | AY163: ROZPOCET
C164: 7 | D164: K | E164: 636311113 | F164: Kladení dlažby z betonových dlaždic na sucho na terče z umělé hmoty o rozměru dlažby 40x40 cm, o výšce terče přes 70 do 100 mm | G164: m2 | H164: 66.55 | J164: =ROUND(I164*H164,2) -> 0 | K164: CS ÚRS 2024 01 | N164: základní | P164: =O164*H164 -> 0 | Q164: 0.0032 | R164: =Q164*H164 -> 0.21296 | S164: 0 | T164: =S164*H164 -> 0 | AR164: 4 | AT164: K | AU164: 2 | AY164: ROZPOCET | BE164: =IF(N164="základní",J164,0) -> 0 | BF164: =IF(N164="snížená",J164,0) -> 0 | BG164: =IF(N164="zákl. přenesená",J164,0) -> 0 | BH164: =IF(N164="sníž. přenesená",J164,0) -> 0 | BI164: =IF(N164="nulová",J164,0) -> 0 | BJ164: 1 | BK164: =ROUND(I164*H164,2) -> 0 | BL164: 4 | BM164: -952353697
D165: VV | F165: skladba NT1 | AT165: VV | AU165: 2 | AV165: 1 | AW165: True | AX165: 0 | AY165: ROZPOCET
D166: VV | F166: hlavní plocha | AT166: VV | AU166: 2 | AV166: 1 | AW166: True | AX166: 0 | AY166: ROZPOCET
D167: VV | F167: 66,55 | H167: 66.55 | AT167: VV | AU167: 2 | AV167: 2 | AW167: True | AX167: 1 | AY167: ROZPOCET
C168: 8 | D168: M | E168: 59245600 | F168: dlažba desková betonová tl 40mm přírodní | G168: m2 | H168: 49.535 | J168: =ROUND(I168*H168,2) -> 0 | K168: CS ÚRS 2024 01 | N168: základní | P168: =O168*H168 -> 0 | Q168: 0.09375 | R168: =Q168*H168 -> 4.64390625 | S168: 0 | T168: =S168*H168 -> 0 | AR168: 8 | AT168: M | AU168: 2 | AY168: ROZPOCET | BE168: =IF(N168="základní",J168,0) -> 0 | BF168: =IF(N168="snížená",J168,0) -> 0 | BG168: =IF(N168="zákl. přenesená",J168,0) -> 0 | BH168: =IF(N168="sníž. přenesená",J168,0) -> 0 | BI168: =IF(N168="nulová",J168,0) -> 0 | BJ168: 1 | BK168: =ROUND(I168*H168,2) -> 0 | BL168: 4 | BM168: -1732903788
D169: VV | F169: skladba NT1 | AT169: VV | AU169: 2 | AV169: 1 | AW169: True | AX169: 0 | AY169: ROZPOCET
D170: VV | F170: hlavní plocha | AT170: VV | AU170: 2 | AV170: 1 | AW170: True | AX170: 0 | AY170: ROZPOCET
D171: VV | F171: 66,55 | H171: 66.55 | AT171: VV | AU171: 2 | AV171: 2 | AW171: True | AX171: 0 | AY171: ROZPOCET
D172: VV | F172: použito 50% původních dlaždic | AT172: VV | AU172: 2 | AV172: 1 | AW172: True | AX172: 0 | AY172: ROZPOCET
D173: VV | F173: -38,747/100*50 | H173: -19.374 | AT173: VV | AU173: 2 | AV173: 2 | AW173: True | AX173: 0 | AY173: ROZPOCET
D174: VV | F174: Součet | H174: 47.176 | AT174: VV | AU174: 2 | AV174: 4 | AW174: True | AX174: 1 | AY174: ROZPOCET
D175: VV | F175: 47,176*1,05 'Přepočtené koeficientem množství | H175: 49.535 | AT175: VV | AU175: 2 | AV175: 2 | AW175: False | AX175: 1 | AY175: ROZPOCET
D176: D | E176: 9 | F176: Ostatní konstrukce a práce, bourání | J176: =BK176 -> 0 | P176: =SUM(P177:P260) -> 0 | R176: =SUM(R177:R260) -> 0.25136737 | T176: =SUM(T177:T260) -> 13.889909 | AR176: 1 | AT176: D | AU176: 1 | AY176: ROZPOCET | BK176: =SUM(BK177:BK260) -> 0
C177: 9 | D177: K | E177: 952902121 | F177: Čištění budov při provádění oprav a udržovacích prací podlah drsných nebo chodníků zametením | G177: m2 | H177: 66.55 | J177: =ROUND(I177*H177,2) -> 0 | K177: CS ÚRS 2024 01 | N177: základní | P177: =O177*H177 -> 0 | Q177: 0 | R177: =Q177*H177 -> 0 | S177: 0 | T177: =S177*H177 -> 0 | AR177: 4 | AT177: K | AU177: 2 | AY177: ROZPOCET | BE177: =IF(N177="základní",J177,0) -> 0 | BF177: =IF(N177="snížená",J177,0) -> 0 | BG177: =IF(N177="zákl. přenesená",J177,0) -> 0 | BH177: =IF(N177="sníž. přenesená",J177,0) -> 0 | BI177: =IF(N177="nulová",J177,0) -> 0 | BJ177: 1 | BK177: =ROUND(I177*H177,2) -> 0 | BL177: 4 | BM177: -479097540
D178: VV | F178: stropní deska | AT178: VV | AU178: 2 | AV178: 1 | AW178: True | AX178: 0 | AY178: ROZPOCET
D179: VV | F179: 66,55 | H179: 66.55 | AT179: VV | AU179: 2 | AV179: 2 | AW179: True | AX179: 1 | AY179: ROZPOCET
C180: 10 | D180: K | E180: 952902611 | F180: Čištění budov při provádění oprav a udržovacích prací vysátím prachu z ostatních ploch | G180: m2 | H180: 66.55 | J180: =ROUND(I180*H180,2) -> 0 | K180: CS ÚRS 2024 01 | N180: základní | P180: =O180*H180 -> 0 | Q180: 0 | R180: =Q180*H180 -> 0 | S180: 0 | T180: =S180*H180 -> 0 | AR180: 4 | AT180: K | AU180: 2 | AY180: ROZPOCET | BE180: =IF(N180="základní",J180,0) -> 0 | BF180: =IF(N180="snížená",J180,0) -> 0 | BG180: =IF(N180="zákl. přenesená",J180,0) -> 0 | BH180: =IF(N180="sníž. přenesená",J180,0) -> 0 | BI180: =IF(N180="nulová",J180,0) -> 0 | BJ180: 1 | BK180: =ROUND(I180*H180,2) -> 0 | BL180: 4 | BM180: -1809841640
D181: VV | F181: stropní deska | AT181: VV | AU181: 2 | AV181: 1 | AW181: True | AX181: 0 | AY181: ROZPOCET
D182: VV | F182: 66,55 | H182: 66.55 | AT182: VV | AU182: 2 | AV182: 2 | AW182: True | AX182: 1 | AY182: ROZPOCET
C183: 11 | D183: K | E183: 964051111 | F183: Bourání samostatných trámů, průvlaků nebo pásů ze železobetonu bez přerušení výztuže, průřezu do 0,10 m2 | G183: m3 | H183: 0.296 | J183: =ROUND(I183*H183,2) -> 0 | K183: CS ÚRS 2024 01 | N183: základní | P183: =O183*H183 -> 0 | Q183: 0 | R183: =Q183*H183 -> 0 | S183: 2.4 | T183: =S183*H183 -> 0.7104 | AR183: 4 | AT183: K | AU183: 2 | AY183: ROZPOCET | BE183: =IF(N183="základní",J183,0) -> 0 | BF183: =IF(N183="snížená",J183,0) -> 0 | BG183: =IF(N183="zákl. přenesená",J183,0) -> 0 | BH183: =IF(N183="sníž. přenesená",J183,0) -> 0 | BI183: =IF(N183="nulová",J183,0) -> 0 | BJ183: 1 | BK183: =ROUND(I183*H183,2) -> 0 | BL183: 4 | BM183: 2138357365
D184: VV | F184: úprava B01 | AT184: VV | AU184: 2 | AV184: 1 | AW184: True | AX184: 0 | AY184: ROZPOCET
D185: VV | F185: trámky 150x150mm | AT185: VV | AU185: 2 | AV185: 1 | AW185: True | AX185: 0 | AY185: ROZPOCET
D186: VV | F186: (8,065-2,045)*0,15*0,15 | H186: 0.135 | AT186: VV | AU186: 2 | AV186: 2 | AW186: True | AX186: 0 | AY186: ROZPOCET
D187: VV | F187: (1,72+5,415)*0,15*0,15 | H187: 0.161 | AT187: VV | AU187: 2 | AV187: 2 | AW187: True | AX187: 0 | AY187: ROZPOCET
D188: VV | F188: Součet | H188: 0.296 | AT188: VV | AU188: 2 | AV188: 4 | AW188: True | AX188: 1 | AY188: ROZPOCET
C189: 12 | D189: K | E189: 96504134R | F189: Bourání mazanin polystyrenbetonových tl do 100 mm pl přes 4 m2 | G189: m3 | H189: 4.29 | J189: =ROUND(I189*H189,2) -> 0 | K189: cena individuální | N189: základní | P189: =O189*H189 -> 0 | Q189: 0 | R189: =Q189*H189 -> 0 | S189: 0.45 | T189: =S189*H189 -> 1.9305 | AR189: 4 | AT189: K | AU189: 2 | AY189: ROZPOCET | BE189: =IF(N189="základní",J189,0) -> 0 | BF189: =IF(N189="snížená",J189,0) -> 0 | BG189: =IF(N189="zákl. přenesená",J189,0) -> 0 | BH189: =IF(N189="sníž. přenesená",J189,0) -> 0 | BI189: =IF(N189="nulová",J189,0) -> 0 | BJ189: 1 | BK189: =ROUND(I189*H189,2) -> 0 | BL189: 4 | BM189: -685921022
D190: VV | F190: úprava B03 | AT190: VV | AU190: 2 | AV190: 1 | AW190: True | AX190: 0 | AY190: ROZPOCET
D191: VV | F191: polystyrenbeton tl. 0-150mm | AT191: VV | AU191: 2 | AV191: 1 | AW191: True | AX191: 0 | AY191: ROZPOCET
D192: VV | F192: Skladba S01 | AT192: VV | AU192: 2 | AV192: 1 | AW192: True | AX192: 0 | AY192: ROZPOCET
D193: VV | F193: 2,045*1,07*0,08 | H193: 0.175 | AT193: VV | AU193: 2 | AV193: 2 | AW193: True | AX193: 0 | AY193: ROZPOCET
D194: VV | F194: (1,07+1,005)*6,02*0,08 | H194: 0.999 | AT194: VV | AU194: 2 | AV194: 2 | AW194: True | AX194: 0 | AY194: ROZPOCET
D195: VV | F195: polystyrenbeton tl. 0-92mm | AT195: VV | AU195: 2 | AV195: 1 | AW195: True | AX195: 0 | AY195: ROZPOCET
D196: VV | F196: skladba S02 | AT196: VV | AU196: 2 | AV196: 1 | AW196: True | AX196: 0 | AY196: ROZPOCET
D197: VV | F197: (0,15+2,52+2,37+0,15)*7,77*0,06 | H197: 2.42 | AT197: VV | AU197: 2 | AV197: 2 | AW197: True | AX197: 0 | AY197: ROZPOCET
D198: VV | F198: -0,70*0,835*0,06 | H198: -0.035 | AT198: VV | AU198: 2 | AV198: 2 | AW198: True | AX198: 0 | AY198: ROZPOCET
D199: VV | F199: -(0,835-0,15)*1,85*0,06 | H199: -0.076 | AT199: VV | AU199: 2 | AV199: 2 | AW199: True | AX199: 0 | AY199: ROZPOCET
D200: VV | F200: skladba S03 | AT200: VV | AU200: 2 | AV200: 1 | AW200: True | AX200: 0 | AY200: ROZPOCET
D201: VV | F201: 13,442*0,06 | H201: 0.807 | AT201: VV | AU201: 2 | AV201: 2 | AW201: True | AX201: 0 | AY201: ROZPOCET
D202: VV | F202: Součet | H202: 4.29 | AT202: VV | AU202: 2 | AV202: 4 | AW202: True | AX202: 1 | AY202: ROZPOCET
C203: 13 | D203: K | E203: 965045113 | F203: Bourání potěrů tl. do 50 mm cementových nebo pískocementových, plochy přes 4 m2 | G203: m2 | H203: 66.596 | J203: =ROUND(I203*H203,2) -> 0 | K203: CS ÚRS 2024 01 | N203: základní | P203: =O203*H203 -> 0 | Q203: 0 | R203: =Q203*H203 -> 0 | S203: 0.09 | T203: =S203*H203 -> 5.99364 | AR203: 4 | AT203: K | AU203: 2 | AY203: ROZPOCET | BE203: =IF(N203="základní",J203,0) -> 0 | BF203: =IF(N203="snížená",J203,0) -> 0 | BG203: =IF(N203="zákl. přenesená",J203,0) -> 0 | BH203: =IF(N203="sníž. přenesená",J203,0) -> 0 | BI203: =IF(N203="nulová",J203,0) -> 0 | BJ203: 1 | BK203: =ROUND(I203*H203,2) -> 0 | BL203: 4 | BM203: 1036743580
D204: VV | F204: úprava B03 | AT204: VV | AU204: 2 | AV204: 1 | AW204: True | AX204: 0 | AY204: ROZPOCET
D205: VV | F205: cementový potěr tl. 30mm | AT205: VV | AU205: 2 | AV205: 1 | AW205: True | AX205: 0 | AY205: ROZPOCET
D206: VV | F206: skladba S01, S02 a S03 | AT206: VV | AU206: 2 | AV206: 1 | AW206: True | AX206: 0 | AY206: ROZPOCET
D207: VV | F207: 2,045*1,07 | H207: 2.188 | AT207: VV | AU207: 2 | AV207: 2 | AW207: True | AX207: 0 | AY207: ROZPOCET
D208: VV | F208: (4,745+4,60)*7,77 | H208: 72.611 | AT208: VV | AU208: 2 | AV208: 2 | AW208: True | AX208: 0 | AY208: ROZPOCET
D209: VV | F209: -0,70*0,835 | H209: -0.585 | AT209: VV | AU209: 2 | AV209: 2 | AW209: True | AX209: 0 | AY209: ROZPOCET
D210: VV | F210: -(2,075+0,15)*1,75 | H210: -3.894 | AT210: VV | AU210: 2 | AV210: 2 | AW210: True | AX210: 0 | AY210: ROZPOCET
D211: VV | F211: -(2,08+0,15)*1,67 | H211: -3.724 | AT211: VV | AU211: 2 | AV211: 2 | AW211: True | AX211: 0 | AY211: ROZPOCET
D212: VV | F212: Součet | H212: 66.596 | AT212: VV | AU212: 2 | AV212: 4 | AW212: True | AX212: 1 | AY212: ROZPOCET
C213: 14 | D213: K | E213: 965081427 | F213: Bourání podlah z dlaždic bez podkladního lože nebo mazaniny, s jakoukoliv výplní spár betonových kladených na terče výšky přes 100 mm, plochy přes 1 m2 | G213: m2 | H213: 38.474 | J213: =ROUND(I213*H213,2) -> 0 | K213: CS ÚRS 2024 01 | N213: základní | P213: =O213*H213 -> 0 | Q213: 0 | R213: =Q213*H213 -> 0 | S213: 0.11 | T213: =S213*H213 -> 4.23214 | AR213: 4 | AT213: K | AU213: 2 | AY213: ROZPOCET | BE213: =IF(N213="základní",J213,0) -> 0 | BF213: =IF(N213="snížená",J213,0) -> 0 | BG213: =IF(N213="zákl. přenesená",J213,0) -> 0 | BH213: =IF(N213="sníž. přenesená",J213,0) -> 0 | BI213: =IF(N213="nulová",J213,0) -> 0 | BJ213: 1 | BK213: =ROUND(I213*H213,2) -> 0 | BL213: 4 | BM213: 401346032
D214: VV | F214: úprava B03 | AT214: VV | AU214: 2 | AV214: 1 | AW214: True | AX214: 0 | AY214: ROZPOCET
D215: VV | F215: skladba S02 | AT215: VV | AU215: 2 | AV215: 1 | AW215: True | AX215: 0 | AY215: ROZPOCET
D216: VV | F216: (0,15+2,52+2,37+0,15)*7,77 | H216: 40.326 | AT216: VV | AU216: 2 | AV216: 2 | AW216: True | AX216: 0 | AY216: ROZPOCET
D217: VV | F217: -0,70*0,835 | H217: -0.585 | AT217: VV | AU217: 2 | AV217: 2 | AW217: True | AX217: 0 | AY217: ROZPOCET
D218: VV | F218: -(0,835-0,15)*1,85 | H218: -1.267 | AT218: VV | AU218: 2 | AV218: 2 | AW218: True | AX218: 0 | AY218: ROZPOCET
D219: VV | F219: Součet | H219: 38.474 | AT219: VV | AU219: 2 | AV219: 4 | AW219: True | AX219: 1 | AY219: ROZPOCET
C220: 15 | D220: K | E220: 966080101 | F220: Bourání kontaktního zateplení včetně povrchové úpravy omítkou nebo nátěrem z polystyrénových desek, tloušťky do 60 mm | G220: m2 | H220: 9.855 | J220: =ROUND(I220*H220,2) -> 0 | K220: CS ÚRS 2024 01 | N220: základní | P220: =O220*H220 -> 0 | Q220: 0 | R220: =Q220*H220 -> 0 | S220: 0.013 | T220: =S220*H220 -> 0.128115 | AR220: 4 | AT220: K | AU220: 2 | AY220: ROZPOCET | BE220: =IF(N220="základní",J220,0) -> 0 | BF220: =IF(N220="snížená",J220,0) -> 0 | BG220: =IF(N220="zákl. přenesená",J220,0) -> 0 | BH220: =IF(N220="sníž. přenesená",J220,0) -> 0 | BI220: =IF(N220="nulová",J220,0) -> 0 | BJ220: 1 | BK220: =ROUND(I220*H220,2) -> 0 | BL220: 4 | BM220: 779245727
D221: VV | F221: úprava B05 | AT221: VV | AU221: 2 | AV221: 1 | AW221: True | AX221: 0 | AY221: ROZPOCET
D222: VV | F222: (1,07+8,065+2,075+0,15+1,75+4,89)*0,45 | H222: 8.1 | AT222: VV | AU222: 2 | AV222: 2 | AW222: True | AX222: 0 | AY222: ROZPOCET
D223: VV | F223: úprava B06 | AT223: VV | AU223: 2 | AV223: 1 | AW223: True | AX223: 0 | AY223: ROZPOCET
D224: VV | F224: (1,67+0,15+2,08)*0,45 | H224: 1.755 | AT224: VV | AU224: 2 | AV224: 2 | AW224: True | AX224: 0 | AY224: ROZPOCET
D225: VV | F225: Součet | H225: 9.855 | AT225: VV | AU225: 2 | AV225: 4 | AW225: True | AX225: 1 | AY225: ROZPOCET
C226: 16 | D226: K | E226: 973041511 | F226: Vysekání výklenků nebo kapes ve zdivu betonovém výklenků, pohledové plochy přes 0,25 m2 | G226: m3 | H226: 0.31 | J226: =ROUND(I226*H226,2) -> 0 | K226: CS ÚRS 2024 01 | N226: základní | P226: =O226*H226 -> 0 | Q226: 0 | R226: =Q226*H226 -> 0 | S226: 2.2 | T226: =S226*H226 -> 0.682 | AR226: 4 | AT226: K | AU226: 2 | AY226: ROZPOCET | BE226: =IF(N226="základní",J226,0) -> 0 | BF226: =IF(N226="snížená",J226,0) -> 0 | BG226: =IF(N226="zákl. přenesená",J226,0) -> 0 | BH226: =IF(N226="sníž. přenesená",J226,0) -> 0 | BI226: =IF(N226="nulová",J226,0) -> 0 | BJ226: 1 | BK226: =ROUND(I226*H226,2) -> 0 | BL226: 4 | BM226: 1908944769
D227: VV | F227: vysekání zdi kolem svodu | AT227: VV | AU227: 2 | AV227: 1 | AW227: True | AX227: 0 | AY227: ROZPOCET
D228: VV | F228: 0,50*3,10*0,20 | H228: 0.31 | AT228: VV | AU228: 2 | AV228: 2 | AW228: True | AX228: 1 | AY228: ROZPOCET
C229: 17 | D229: K | E229: 985112111 | F229: Odsekání degradovaného betonu stěn, tloušťky do 10 mm | G229: m2 | H229: 3.032 | J229: =ROUND(I229*H229,2) -> 0 | K229: CS ÚRS 2024 01 | N229: základní | P229: =O229*H229 -> 0 | Q229: 0 | R229: =Q229*H229 -> 0 | S229: 0.022 | T229: =S229*H229 -> 0.066704 | AR229: 4 | AT229: K | AU229: 2 | AY229: ROZPOCET | BE229: =IF(N229="základní",J229,0) -> 0 | BF229: =IF(N229="snížená",J229,0) -> 0 | BG229: =IF(N229="zákl. přenesená",J229,0) -> 0 | BH229: =IF(N229="sníž. přenesená",J229,0) -> 0 | BI229: =IF(N229="nulová",J229,0) -> 0 | BJ229: 1 | BK229: =ROUND(I229*H229,2) -> 0 | BL229: 4 | BM229: -663572657
D230: VV | F230: atiky a stěny | AT230: VV | AU230: 2 | AV230: 1 | AW230: True | AX230: 0 | AY230: ROZPOCET
D231: VV | F231: předpoklad 10% plochy | AT231: VV | AU231: 2 | AV231: 1 | AW231: True | AX231: 0 | AY231: ROZPOCET
D232: VV | F232: 40,43*0,75/100*10 | H232: 3.032 | AT232: VV | AU232: 2 | AV232: 2 | AW232: True | AX232: 1 | AY232: ROZPOCET
C233: 18 | D233: K | E233: 985112131 | F233: Odsekání degradovaného betonu rubu kleneb a podlah, tloušťky do 10 mm | G233: m2 | H233: 6.655 | J233: =ROUND(I233*H233,2) -> 0 | K233: CS ÚRS 2024 01 | N233: základní | P233: =O233*H233 -> 0 | Q233: 0 | R233: =Q233*H233 -> 0 | S233: 0.022 | T233: =S233*H233 -> 0.14641 | AR233: 4 | AT233: K | AU233: 2 | AY233: ROZPOCET | BE233: =IF(N233="základní",J233,0) -> 0 | BF233: =IF(N233="snížená",J233,0) -> 0 | BG233: =IF(N233="zákl. přenesená",J233,0) -> 0 | BH233: =IF(N233="sníž. přenesená",J233,0) -> 0 | BI233: =IF(N233="nulová",J233,0) -> 0 | BJ233: 1 | BK233: =ROUND(I233*H233,2) -> 0 | BL233: 4 | BM233: -987449526
D234: VV | F234: stropní deska | AT234: VV | AU234: 2 | AV234: 1 | AW234: True | AX234: 0 | AY234: ROZPOCET
D235: VV | F235: předpoklad 10% plochy | AT235: VV | AU235: 2 | AV235: 1 | AW235: True | AX235: 0 | AY235: ROZPOCET
D236: VV | F236: 66,55/100*10 | H236: 6.655 | AT236: VV | AU236: 2 | AV236: 2 | AW236: True | AX236: 1 | AY236: ROZPOCET
C237: 19 | D237: K | E237: 985311111 | F237: Reprofilace betonu sanačními maltami na cementové bázi ručně stěn, tloušťky do 10 mm | G237: m2 | H237: 3.032 | J237: =ROUND(I237*H237,2) -> 0 | K237: CS ÚRS 2024 01 | N237: základní | P237: =O237*H237 -> 0 | Q237: 0.02014 | R237: =Q237*H237 -> 0.06106448 | S237: 0 | T237: =S237*H237 -> 0 | AR237: 4 | AT237: K | AU237: 2 | AY237: ROZPOCET | BE237: =IF(N237="základní",J237,0) -> 0 | BF237: =IF(N237="snížená",J237,0) -> 0 | BG237: =IF(N237="zákl. přenesená",J237,0) -> 0 | BH237: =IF(N237="sníž. přenesená",J237,0) -> 0 | BI237: =IF(N237="nulová",J237,0) -> 0 | BJ237: 1 | BK237: =ROUND(I237*H237,2) -> 0 | BL237: 4 | BM237: -1189084000
D238: VV | F238: atiky a stěny | AT238: VV | AU238: 2 | AV238: 1 | AW238: True | AX238: 0 | AY238: ROZPOCET
D239: VV | F239: předpoklad 10% plochy | AT239: VV | AU239: 2 | AV239: 1 | AW239: True | AX239: 0 | AY239: ROZPOCET
D240: VV | F240: 40,43*0,75/100*10 | H240: 3.032 | AT240: VV | AU240: 2 | AV240: 2 | AW240: True | AX240: 1 | AY240: ROZPOCET
C241: 20 | D241: K | E241: 985311311 | F241: Reprofilace betonu sanačními maltami na cementové bázi ručně rubu kleneb a podlah, tloušťky do 10 mm | G241: m2 | H241: 6.655 | J241: =ROUND(I241*H241,2) -> 0 | K241: CS ÚRS 2024 01 | N241: základní | P241: =O241*H241 -> 0 | Q241: 0.02014 | R241: =Q241*H241 -> 0.1340317 | S241: 0 | T241: =S241*H241 -> 0 | AR241: 4 | AT241: K | AU241: 2 | AY241: ROZPOCET | BE241: =IF(N241="základní",J241,0) -> 0 | BF241: =IF(N241="snížená",J241,0) -> 0 | BG241: =IF(N241="zákl. přenesená",J241,0) -> 0 | BH241: =IF(N241="sníž. přenesená",J241,0) -> 0 | BI241: =IF(N241="nulová",J241,0) -> 0 | BJ241: 1 | BK241: =ROUND(I241*H241,2) -> 0 | BL241: 4 | BM241: -2136655083
D242: VV | F242: stropní deska | AT242: VV | AU242: 2 | AV242: 1 | AW242: True | AX242: 0 | AY242: ROZPOCET
D243: VV | F243: předpoklad 10% plochy | AT243: VV | AU243: 2 | AV243: 1 | AW243: True | AX243: 0 | AY243: ROZPOCET
D244: VV | F244: 66,55/100*10 | H244: 6.655 | AT244: VV | AU244: 2 | AV244: 2 | AW244: True | AX244: 1 | AY244: ROZPOCET
C245: 21 | D245: K | E245: 985312111 | F245: Stěrka k vyrovnání ploch reprofilovaného betonu stěn, tloušťky do 2 mm | G245: m2 | H245: 3.032 | J245: =ROUND(I245*H245,2) -> 0 | K245: CS ÚRS 2024 01 | N245: základní | P245: =O245*H245 -> 0 | Q245: 0.00397 | R245: =Q245*H245 -> 0.01203704 | S245: 0 | T245: =S245*H245 -> 0 | AR245: 4 | AT245: K | AU245: 2 | AY245: ROZPOCET | BE245: =IF(N245="základní",J245,0) -> 0 | BF245: =IF(N245="snížená",J245,0) -> 0 | BG245: =IF(N245="zákl. přenesená",J245,0) -> 0 | BH245: =IF(N245="sníž. přenesená",J245,0) -> 0 | BI245: =IF(N245="nulová",J245,0) -> 0 | BJ245: 1 | BK245: =ROUND(I245*H245,2) -> 0 | BL245: 4 | BM245: -2089057254
D246: VV | F246: atiky a stěny | AT246: VV | AU246: 2 | AV246: 1 | AW246: True | AX246: 0 | AY246: ROZPOCET
D247: VV | F247: předpoklad 10% plochy | AT247: VV | AU247: 2 | AV247: 1 | AW247: True | AX247: 0 | AY247: ROZPOCET
D248: VV | F248: 40,43*0,75/100*10 | H248: 3.032 | AT248: VV | AU248: 2 | AV248: 2 | AW248: True | AX248: 1 | AY248: ROZPOCET
C249: 22 | D249: K | E249: 985312131 | F249: Stěrka k vyrovnání ploch reprofilovaného betonu rubu kleneb a podlah, tloušťky do 2 mm | G249: m2 | H249: 6.655 | J249: =ROUND(I249*H249,2) -> 0 | K249: CS ÚRS 2024 01 | N249: základní | P249: =O249*H249 -> 0 | Q249: 0.00359 | R249: =Q249*H249 -> 0.02389145 | S249: 0 | T249: =S249*H249 -> 0 | AR249: 4 | AT249: K | AU249: 2 | AY249: ROZPOCET | BE249: =IF(N249="základní",J249,0) -> 0 | BF249: =IF(N249="snížená",J249,0) -> 0 | BG249: =IF(N249="zákl. přenesená",J249,0) -> 0 | BH249: =IF(N249="sníž. přenesená",J249,0) -> 0 | BI249: =IF(N249="nulová",J249,0) -> 0 | BJ249: 1 | BK249: =ROUND(I249*H249,2) -> 0 | BL249: 4 | BM249: -1696709138
D250: VV | F250: stropní deska | AT250: VV | AU250: 2 | AV250: 1 | AW250: True | AX250: 0 | AY250: ROZPOCET
D251: VV | F251: předpoklad 10% plochy | AT251: VV | AU251: 2 | AV251: 1 | AW251: True | AX251: 0 | AY251: ROZPOCET
D252: VV | F252: 66,55/100*10 | H252: 6.655 | AT252: VV | AU252: 2 | AV252: 2 | AW252: True | AX252: 1 | AY252: ROZPOCET
C253: 23 | D253: K | E253: 985323111 | F253: Spojovací můstek reprofilovaného betonu na cementové bázi, tloušťky 1 mm | G253: m2 | H253: 9.687 | J253: =ROUND(I253*H253,2) -> 0 | K253: CS ÚRS 2024 01 | N253: základní | P253: =O253*H253 -> 0 | Q253: 0.0021 | R253: =Q253*H253 -> 0.0203427 | S253: 0 | T253: =S253*H253 -> 0 | AR253: 4 | AT253: K | AU253: 2 | AY253: ROZPOCET | BE253: =IF(N253="základní",J253,0) -> 0 | BF253: =IF(N253="snížená",J253,0) -> 0 | BG253: =IF(N253="zákl. přenesená",J253,0) -> 0 | BH253: =IF(N253="sníž. přenesená",J253,0) -> 0 | BI253: =IF(N253="nulová",J253,0) -> 0 | BJ253: 1 | BK253: =ROUND(I253*H253,2) -> 0 | BL253: 4 | BM253: -1183182370
D254: VV | F254: atiky a stěny | AT254: VV | AU254: 2 | AV254: 1 | AW254: True | AX254: 0 | AY254: ROZPOCET
D255: VV | F255: předpoklad 10% plochy | AT255: VV | AU255: 2 | AV255: 1 | AW255: True | AX255: 0 | AY255: ROZPOCET
D256: VV | F256: 40,43*0,75/100*10 | H256: 3.032 | AT256: VV | AU256: 2 | AV256: 2 | AW256: True | AX256: 0 | AY256: ROZPOCET
D257: VV | F257: stropní deska | AT257: VV | AU257: 2 | AV257: 1 | AW257: True | AX257: 0 | AY257: ROZPOCET
D258: VV | F258: předpoklad 10% plochy | AT258: VV | AU258: 2 | AV258: 1 | AW258: True | AX258: 0 | AY258: ROZPOCET
D259: VV | F259: 66,55/100*10 | H259: 6.655 | AT259: VV | AU259: 2 | AV259: 2 | AW259: True | AX259: 0 | AY259: ROZPOCET
D260: VV | F260: Součet | H260: 9.687 | AT260: VV | AU260: 2 | AV260: 4 | AW260: True | AX260: 1 | AY260: ROZPOCET
D261: D | E261: 997 | F261: Přesun sutě | J261: =BK261 -> 0 | P261: =SUM(P262:P277) -> 0 | R261: =SUM(R262:R277) -> 0 | T261: =SUM(T262:T277) -> 0 | AR261: 1 | AT261: D | AU261: 1 | AY261: ROZPOCET | BK261: =SUM(BK262:BK277) -> 0
C262: 24 | D262: K | E262: 997013211 | F262: Vnitrostaveništní doprava suti a vybouraných hmot vodorovně do 50 m s naložením ručně pro budovy a haly výšky do 6 m | G262: t | H262: 19.144 | J262: =ROUND(I262*H262,2) -> 0 | K262: CS ÚRS 2024 01 | N262: základní | P262: =O262*H262 -> 0 | Q262: 0 | R262: =Q262*H262 -> 0 | S262: 0 | T262: =S262*H262 -> 0 | AR262: 4 | AT262: K | AU262: 2 | AY262: ROZPOCET | BE262: =IF(N262="základní",J262,0) -> 0 | BF262: =IF(N262="snížená",J262,0) -> 0 | BG262: =IF(N262="zákl. přenesená",J262,0) -> 0 | BH262: =IF(N262="sníž. přenesená",J262,0) -> 0 | BI262: =IF(N262="nulová",J262,0) -> 0 | BJ262: 1 | BK262: =ROUND(I262*H262,2) -> 0 | BL262: 4 | BM262: 2010901042
C263: 25 | D263: K | E263: 997013501 | F263: Odvoz suti a vybouraných hmot na skládku nebo meziskládku se složením, na vzdálenost do 1 km | G263: t | H263: 19.144 | J263: =ROUND(I263*H263,2) -> 0 | K263: CS ÚRS 2024 01 | N263: základní | P263: =O263*H263 -> 0 | Q263: 0 | R263: =Q263*H263 -> 0 | S263: 0 | T263: =S263*H263 -> 0 | AR263: 4 | AT263: K | AU263: 2 | AY263: ROZPOCET | BE263: =IF(N263="základní",J263,0) -> 0 | BF263: =IF(N263="snížená",J263,0) -> 0 | BG263: =IF(N263="zákl. přenesená",J263,0) -> 0 | BH263: =IF(N263="sníž. přenesená",J263,0) -> 0 | BI263: =IF(N263="nulová",J263,0) -> 0 | BJ263: 1 | BK263: =ROUND(I263*H263,2) -> 0 | BL263: 4 | BM263: 1280895652
C264: 26 | D264: K | E264: 997013509 | F264: Odvoz suti a vybouraných hmot na skládku nebo meziskládku se složením, na vzdálenost Příplatek k ceně za každý další započatý 1 km přes 1 km | G264: t | H264: 287.16 | J264: =ROUND(I264*H264,2) -> 0 | K264: CS ÚRS 2024 01 | N264: základní | P264: =O264*H264 -> 0 | Q264: 0 | R264: =Q264*H264 -> 0 | S264: 0 | T264: =S264*H264 -> 0 | AR264: 4 | AT264: K | AU264: 2 | AY264: ROZPOCET | BE264: =IF(N264="základní",J264,0) -> 0 | BF264: =IF(N264="snížená",J264,0) -> 0 | BG264: =IF(N264="zákl. přenesená",J264,0) -> 0 | BH264: =IF(N264="sníž. přenesená",J264,0) -> 0 | BI264: =IF(N264="nulová",J264,0) -> 0 | BJ264: 1 | BK264: =ROUND(I264*H264,2) -> 0 | BL264: 4 | BM264: -287841306
D265: VV | F265: 19,144*15 'Přepočtené koeficientem množství | H265: 287.16 | AT265: VV | AU265: 2 | AV265: 2 | AW265: False | AX265: 1 | AY265: ROZPOCET
C266: 27 | D266: K | E266: 997013631 | F266: Poplatek za uložení stavebního odpadu na skládce (skládkovné) směsného stavebního a demoličního zatříděného do Katalogu odpadů pod kódem 17 09 04 | G266: t | H266: 18.855 | J266: =ROUND(I266*H266,2) -> 0 | K266: CS ÚRS 2024 01 | N266: základní | P266: =O266*H266 -> 0 | Q266: 0 | R266: =Q266*H266 -> 0 | S266: 0 | T266: =S266*H266 -> 0 | AR266: 4 | AT266: K | AU266: 2 | AY266: ROZPOCET | BE266: =IF(N266="základní",J266,0) -> 0 | BF266: =IF(N266="snížená",J266,0) -> 0 | BG266: =IF(N266="zákl. přenesená",J266,0) -> 0 | BH266: =IF(N266="sníž. přenesená",J266,0) -> 0 | BI266: =IF(N266="nulová",J266,0) -> 0 | BJ266: 1 | BK266: =ROUND(I266*H266,2) -> 0 | BL266: 4 | BM266: -172779724
... 418 more rows
